Cogmind - Beta 14 @@@ ROGUE MODE // 2024.10.02 @ 15:10:37 Player: THN-L0C Result: Destroyed by as-35541 with Assembled Blade Performance ------------- Evolutions (0) 0 Regions Visited (2) 400 Robots Destroyed (19) 95 Value Destroyed (327) 327 Prototype IDs (0) 0 Alien Tech Used (0) 0 Bonus (0) 0 TOTAL SCORE: 822 Bonus ------- None Cogmind --------- Core Integrity 0/250 Matter 300/300 Energy 90/100 System Corruption 3% Temperature Cool (69) Movement Core (400) Ox7 Location -10/Mines Parts ------- > --- POWER (1) -------- (None) > --- PROPULSION (2) --- (None) > --- UTILITY (2) ------ Large Storage Unit > --- WEAPON (2) ------- Particle Gun > --- INVENTORY (15) --- Light Ion Engine Heat Sink Small Storage Unit Huge Storage Unit Large Matter Pod (98) Improved Terrain Scanner Mining Laser Peak State ------------ > --- POWER ------------ Light Ion Engine > --- PROPULSION ------- Light Treads Light Treads > --- UTILITY ---------- Small Storage Unit Improved Terrain Scanner > --- WEAPON ----------- Assault Rifle Light Assault Rifle > --- INVENTORY -------- Mining Laser [Rating: 9] Favorites ----------- Power Light Ion Engine Engine Light Ion Engine Propulsion Light Treads Treads Light Treads Leg Aluminum Leg Utility Seismic Detector Device Seismic Detector Storage Large Storage Unit Weapon Assault Rifle Energy Gun Particle Gun Ballistic Gun Assault Rifle Special Weapon Mining Laser Build | -11 -10 -10 ------- Run | Yrd Mat Min Slots Evolved . | . . . Power . | . . . Propulsion . | . . . Utility . | . . . Weapon . | . . . Parts Attached 14 | 9 4 1 Power 2 | 1 1 . Engine 2 | 1 1 . Core . | . . . Reactor . | . . . Propulsion 3 | 3 . . Treads 2 | 2 . . Leg 1 | 1 . . Wheel . | . . . Hover . | . . . Flight . | . . . Utility 4 | 3 1 . Device 2 | 2 . . Storage 2 | 1 1 . Processor . | . . . Hackware . | . . . Protection . | . . . Artifact . | . . . Weapon 5 | 2 2 1 Energy Gun 1 | . . 1 Energy Cannon . | . . . Ballistic Gun 3 | 2 1 . Ballistic Cannon . | . . . Launcher . | . . . Special Weapon 1 | . 1 . Impact Weapon . | . . . Slashing Weapon . | . . . Piercing Weapon . | . . . Special Melee Weapon . | . . . Unidentified Prototypes . | . . . Parts Lost 7 | . 1 6 Power 2 | . 1 1 Propulsion 2 | . . 2 Utility 1 | . . 1 Weapon 2 | . . 2 Highest Loss Streak 5 | . 1 5 To Critical Strikes . | . . . Average Slot Usage (%) 98 | . 99 95 Engine 13 | . 13 14 Treads 28 | . 28 28 Device 13 | . 14 13 Storage 14 | . 14 14 Ballistic Gun 26 | . 27 20 Peak Build Rating 9 | 9 7 8 Average Rating 7 | 7 6 6 On Entrance 4 | . 7 7 Naked Turns . | . . . Heaviest Build 29 | 12 27 29 Greatest Support 40 | 20 40 40 Greatest Overweight (x) 1 | 1 . . Average Overweight (x) . | . . . Largest Inventory Capacity 15 | 8 15 15 Average Capacity 11 | 7 12 15 Most Carried 7 | 2 6 7 Average Carried 3 | . 4 6 Final Capacity 15 | 8 15 15 Final Carried 7 | 2 6 7 Class Distribution -------------------- 100% | Mutant Dominant Class ---------------- Mutant | -10/Materials Mutant | -10/Mines Resources | -11 -10 -10 ----------- Run | Yrd Mat Min Matter Collected 674 | 360 230 84 Remotely . | . . . Salvage Created 585 | 224 277 84 Parts 43 | 19 20 4 Haulers Intercepted . | . . . Recyclers Shooed 4 | 1 3 . Parts Field Recycled . | . . . Retrieved Matter . | . . . Parts Self-Destructed . | . . . Prevented . | . . . Kills | -11 -10 -10 ------- Run | Yrd Mat Min Combat Hostiles Destroyed 8 | . 6 2 Guns 8 | . 6 2 Classes Destroyed 7 | 3 4 . Worker 2 | 2 . . Tunneler 5 | 5 . . Recycler 1 | 1 . . Mechanic 1 | . 1 . Watcher 2 | . 2 . Swarmer 3 | . 3 . Grunt 5 | . 3 2 Best Kill Streak 4 | 4 4 1 Combat Bots Only 4 | . 4 1 Max Kills in Single Turn 2 | 1 2 1 Gunslinging . | . . . Exploded . | . . . Melee . | . . . Uniques/NPCs Destroyed . | . . . Combat | -11 -10 -10 -------- Run | Yrd Mat Min Hostile Shots Fired 96 | . 43 53 Missed 26 | . 12 14 Damage Taken 979 | . 364 615 Core 265 | . 39 226 Absorbed by Shields . | . . . Core Remaining (%) 100 | 100 . . Volleys Fired 79 | 20 42 17 Largest 2 | 2 2 2 Hottest 100 | 40 100 65 Shots Fired 140 | 40 77 23 Gun 133 | 40 70 23 Cannon . | . . . Launcher . | . . . Special 7 | . 7 . Kinetic 129 | 40 70 19 Thermal 11 | . 7 4 Explosive . | . . . Electromagnetic . | . . . Robot Hit Streak 11 | 9 7 11 Robot Miss Streak 4 | 4 4 2 Penetration Max . | . . . Secondary Targets 1 | . 1 . Max Gunslinging Chain 1 | . 1 . Shots Hit Robots 84 | 26 41 17 Core Hits 39 | 12 21 6 Critical Kills . | . . . Critical Parts Destroyed . | . . . Critical Strikes . | . . . Melee Attacks . | . . . Impact . | . . . Slashing . | . . . Piercing . | . . . Sneak Attacks . | . . . Combat Hostiles . | . . . Follow-up Attacks . | . . . Damage Inflicted 918 | 292 429 197 Guns 918 | 292 429 197 Cannons . | . . . Explosions . | . . . Melee . | . . . Ramming . | . . . Kinetic 900 | 292 429 179 Thermal 18 | . . 18 Explosive . | . . . Electromagnetic . | . . . Impact . | . . . Slashing . | . . . Piercing . | . . . Highest Corruption 3 | . . 3 Average Corruption 3 | . . 3 Corruption Purged . | . . . Corruption Blocked . | . . . Effects 1 | . . 1 Matter Fused 1 | . . 1 Overload Shots . | . . . Overflow Damage . | . . . Projectiles . | . . . Explosions . | . . . Melee . | . . . Knockbacks . | . . . Impact . | . . . Kinetic . | . . . Secondary . | . . . Self-Inflicted Damage . | . . . Shots . | . . . Rammed . | . . . Targets Rammed . | . . . Kicked . | . . . Crushed . | . . . Highest Temperature 85 | . 42 85 Average Temperature 18 | . 13 28 Received Heat Transfer 391 | . 165 226 Siege Activations . | . . . Robots Corrupted . | . . . Combat Hostiles . | . . . Parts Fried . | . . . Impact Corruptions . | . . . Robots Melted . | . . . Combat Hostiles . | . . . Parts Melted . | . . . Heat Transferred 37 | . . 37 Parts Sabotaged . | . . . Parts Stolen . | . . . Parts Stripped . | . . . Power Chain Reactions . | . . . Alert | -11 -10 -10 ------- Run | Yrd Mat Min Peak Influence 221 | 40 221 40 Initial 26 | . 26 . Average 58 | 14 77 17 Maximum Alert Level 1 | . 1 . Low Security (%) 94 | 100 92 100 Level 1 5 | . 7 . Level 2 . | . . . Level 3 . | . . . Level 4 . | . . . Level 5 . | . . . High Security . | . . . Max Security . | . . . Squads Dispatched . | . . . Investigation . | . . . Extermination . | . . . Reinforcement . | . . . Assault . | . . . Garrison . | . . . Intercept . | . . . Searches Triggered . | . . . Construction Impeded . | . . . Haulers Reinforced . | . . . Active Scanning Responses . | . . . Cargo Convoy Interrupts . | . . . Stealth | -11 -10 -10 --------- Run | Yrd Mat Min Distress Signals 3 | . 3 . Communications Jammed . | . . . Distress Signals . | . . . Times Spotted 33 | . 12 21 Peak Tracking Total 19 | . 4 19 Tactical Retreats . | . . . Traps | -11 -10 -10 ------- Run | Yrd Mat Min Traps Triggered . | . . . Indirectly . | . . . Trap Hack Attempts . | . . . Triggered . | . . . Disarmed . | . . . Reprogrammed . | . . . Reused . | . . . Traps Extracted . | . . . Installed . | . . . Triggered . | . . . Machines | -11 -10 -10 ---------- Run | Yrd Mat Min Machines Disabled . | . . . Max in Single Turn . | . . . Machines Repaired . | . . . Machines Dismantled . | . . . Machines Sabotaged . | . . . Overloaded Fab Kills . | . . . Hacking | -11 -10 -10 --------- Run | Yrd Mat Min Machines Accessed 5 | . 5 . Terminals 5 | . 5 . Fabricators . | . . . Repair Stations . | . . . Recycling Units . | . . . Scanalyzers . | . . . Garrison Access . | . . . Total Hacks 15 | . 15 . Successful 9 | . 9 . Failed 6 | . 6 . Catastrophic . | . . . Database Lockouts . | . . . Manual 15 | . 15 . Terminals 15 | . 15 . Fabricators . | . . . Repair Stations . | . . . Recycling Units . | . . . Scanalyzers . | . . . Garrison Access . | . . . Terminal Hacks . | . . . Fabricator Hacks . | . . . Repair Station Hacks . | . . . Recycling Unit Hacks . | . . . Scanalyzer . | . . . Garrison Access Hacks . | . . . Unauthorized Hacks 9 | . 9 . Terminals 9 | . 9 . Botnet 3 | . 3 . Operators 1 | . 1 . Skim 5 | . 5 . Fabricators . | . . . Repair Stations . | . . . Recycling Units . | . . . Scanalyzers . | . . . Garrison Access . | . . . Data Cores Recovered . | . . . Used . | . . . Hacking Detections 5 | . 5 . Full Trace Events . | . . . Feedback Events . | . . . Feedback Blocked . | . . . Robot Schematics Acquired . | . . . Robots Built . | . . . Authchips . | . . . Time . | . . . Total Robot Build Rating . | . . . Part Schematics Acquired . | . . . Parts Built . | . . . Authchips . | . . . Time . | . . . Total Part Build Rating . | . . . Parts Repaired . | . . . Time . | . . . Parts Recycled . | . . . Recycled Matter . | . . . Retrieved Matter . | . . . Retrieved Components . | . . . Parts Scanalyzed . | . . . Part Schematics Acquired . | . . . Parts Damaged . | . . . Bothacking | -11 -10 -10 ------------ Run | Yrd Mat Min Used RIF Installer . | . . . Robots Hacked . | . . . Non-combat . | . . . Combat . | . . . Robot Hacks Applied . | . . . Relay Couplers Released . | . . . Fabnet Peak Effective % . | . . . Robots Rewired . | . . . Allies Hacked . | . . . Hacks Repelled . | . . . Allies | -11 -10 -10 -------- Run | Yrd Mat Min Total Allies . | . . . Largest Group . | . . . Highest-Rated Group . | . . . Highest-Rated Ally . | . . . Total Orders . | . . . Ally Attacks . | . . . Total Damage . | . . . Kills . | . . . Allies Corrupted . | . . . Allies Melted . | . . . Intel | -11 -10 -10 ------- Run | Yrd Mat Min Robot Analysis Total . | . . . Derelict Logs Recovered . | . . . Drone Launches . | . . . Drone Recoveries . | . . . Exploration | -11 -10 -10 ------------- Run | Yrd Mat Min Turns Passed 1257 | 253 861 143 Spaces Moved 406 | 75 270 61 Core 7 | 7 . . Treads 391 | 60 270 61 Legs 8 | 8 . . Wheels . | . . . Hover . | . . . Flight . | . . . Fastest Speed 50 | 50 160 160 Average Speed 157 | 147 160 160 Slowest Speed 160 | 160 160 160 Overloaded Moves . | . . . Propulsion Burnouts . | . . . Robots Hopped . | . . . Cave-ins Triggered . | . . . Exploration Rate (%) 25 | 5 46 26 Regions Visited 2 Branch Regions 1 Pre-discovered Areas . | . . . Known Exits Taken . | . . . Unknown Exits Taken 2 | 1 1 . Scrap Searched . | . . . Spaces Dug 6 | . 6 . Terrain Destroyed 7 | . 7 . Melee . | . . . Projectile 7 | . 7 . AOE . | . . . Terrain Rammed . | . . . Walls Destroyed . | . . . Machines Disabled . | . . . Actions | -11 -10 -10 --------- Run | Yrd Mat Min Total 877 | 178 613 86 Wait 372 | 71 295 6 Move 404 | 74 269 61 Hop . | . . . Pick Up 6 | 2 3 1 Fast Attach 10 | 8 1 1 Attach . | . . . Detach 1 | 1 . . Swap 4 | 1 3 . Drop 1 | 1 . . Fire 79 | 20 42 17 Melee . | . . . Ram . | . . . Kick . | . . . Crush . | . . . Escape Stasis . | . . . Rewire . | . . . Trap . | . . . Miscellaneous . | . . . Route ------- -11/Scrapyard -10/Materials (discovered 5 exits: *Mat x3 / [*Min] / Sub) -10/Mines History --------- Turn | Location | Event 12 | -11/Scrapyard | Discovered new exit (range 16) 254 | -11/Scrapyard | Entered Materials 304 | -10/Materials | Build established: Mutant 493 | -10/Materials | Discovered new exit (range 8) 650 | -10/Materials | Discovered new exit (range 3) 722 | -10/Materials | Identified exit to Subcaves 799 | -10/Materials | Learned 2 Storage zone layouts 864 | -10/Materials | Identified exit to Materials 920 | -10/Materials | Loaded intel: 32 trap records 1039 | -10/Materials | Learned Storage security intel 1115 | -10/Materials | Entered Mines 1231 | -10/Mines | Assembled infested the area 1236 | -10/Mines | Assisted by a Guerilla fighting off Assembled 1244 | -10/Mines | Core integrity fell below 50% 1255 | -10/Mines | Core integrity fell below 20% 1258 | -10/Mines | Destroyed by as-35541 with Assembled Blade Last Messages --------------- 01239_ HV Slug penetrates as-35541. 01239_ as-26319 suffers critical hit (Destroy). 01239_ as-26319 knocked back. 01241_ HV Slug penetrates as-56802. 01241_ as-56802 knocked back. 01241_ as-43428 destroyed. 01241_ TY-4PE(h) destroyed. 01245_ K-01 Serf collects debris. 01246_ Seismic Detector destroyed. 01246_ System corrupted by crushing effect (+3). 01248_ Assault Rifle destroyed. 01251_ System corrupted: Matter fused (-6). 01251_ Lgt. Treads destroyed. 01253_ Lgt. Ion Engine destroyed. 01253_ Lgt. Treads destroyed. 01255_ as-26319 destroyed. 01255_ as-29765 destroyed. 01255_ as-35231 destroyed. 01255_ as-84519 destroyed. 01255_ as-84489 destroyed. Map ----- +----------------------------------------------------+ | ?????????????????????????????????????# #???????? | | ?????????????????????????????????????# #???????? | | ?????????????????????????###?????????# #???????? | | ????????????????????????## #????????# #???????? | | ??????????????????? ### ????????# #???????? | | ??????????????? ????????# #???????? | | ????????????? #????????# ##??????? | | ???????????? ##???????# #??????? | | ???????????? % % ? ##??????## #??????? | | ????????????? ?? ##??????# #??????? | | ?????????????? ???# ##?????# #??????? | | ???????????????# #???# ##????# ##?????? | | ????????????????# % #??## ##??## ##????? | | ????????????????# *#### #??#= ###### | | ?????????????????# % ## #### | | ????????########### % r #### | | ????????# ##???? | | ????????? $ %% ### ##????? | | ?????????????#### #?# ##?????? | | ????????????????# % ##?## ##??????? | | ????????????????# aa ##???####???????? | | ????????????????#### a ######???????????????? | | ???????????????????## a ##????????????????????? | | ????????????????????## ##?????????????????????? | | ?????????????????????###a#??????????????????????? | | ???????????????????????#@#??????????????????????? | | ???????????????????????# ?????????????????????? | | ???????????????????????#####????????????????????? | | ????????????????????????????????????????????????? | | ????????????????????????????????????????????????? | | ????????????????????????????????????????????????? | | ????????????????????????????????????????????????? | | ????????????????????????????????????????????????? | | ????????????????????????????????????????????????? | | ????????????????????????????????????????????????? | | ????????????????????????????????????????????????? | | ????????????????????????????????????????????????? | | ????????????????????????????????????????????????? | | ????????????????????????????????????????????????? | | ????????????????????????????????????????????????? | | ????????????????????????????????????????????????? | | ????????????????????????????????????????????????? | | ????????????????????????????????????????????????? | | ????????????????????????????????????????????????? | | ????????????????????????????????????????????????? | | ????????????????????????????????????????????????? | | ????????????????????????????????????????????????? | | ????????????????????????????????????????????????? | | ????????????????????????????????????????????????? | | ????????????????????????????????????????????????? | +----------------------------------------------------+ Best States ------------- Heat Dissipation 25 Energy Generation 10 Energy Capacity 125 Matter Stores 300 Matter Capacity 300 Sight Range 16 Terrain Scan Range 16 Terrain Scan Density 10 Evasion (%) 55 Recoil Reduction 2 Item Schematics ----------------- None Robot Schematics ------------------ None Fabricated ------------ Nothing Alien Tech Used ----------------- None Achievements -------------- None Challenges ------------ None Game ------ Seed TechAntigravMediator Manual? 0 Play Time 00:06:32 Cumulative 287.7 hours Start 2024.10.02 @ 15:05:14 End 2024.10.02 @ 15:10:37 Sessions 1 Manual Loads 0 Difficulty Rogue Special Mode None Game No. 230 Rogue 230 Adventurer 0 Explorer 0 Win Type - Total 2 Types 1/0/0/1/0/0/0/0/0 Lore% 73 Gallery% 78 Achievement% 58 Wizard Run 0 Options --------- Layout 2 ASCII 0 Keyboard 1 Movement Vi Keybinds 0 Fullscreen 1 Font 32/SmallcapsGlow Map View 77x44 Zoom Use 0% Tactical HUD 1 Map Filters NONE Filters NONE Steam 1 RUN: e5342c0c-fccf-43ae-a9aa-68f48b6ba9ca